Cogmind - Beta 10.2 @@@ ROGUE MODE // 2021.10.03 @ 11:15:32 Player: Minty Result: Destroyed by G-34 Mercenary with Small Laser Performance ------------- Evolutions (0) 0 Regions Visited (1) 200 Robots Destroyed (4) 20 Value Destroyed (146) 146 Prototype IDs (0) 0 Alien Tech Used (0) 0 Bonus (0) 0 TOTAL SCORE: 366 Bonus ------- None Cogmind --------- Core Integrity 0/250 Matter 270/300 Energy 100/100 System Corruption 0% Temperature Cool (6) Movement Walking (120) Location -10/Materials Parts ------- > --- POWER (1) -------- (None) > --- PROPULSION (2) --- Aluminum Leg Aluminum Leg > --- UTILITY (2) ------ Small Storage Unit Field Recycling Unit > --- WEAPON (2) ------- Hammer Hammer > --- INVENTORY (6) ---- Light Treads Light Treads Aluminum Leg Aluminum Leg Heat Sink Light Assault Rifle Peak State ------------ > --- POWER ------------ Light Ion Engine > --- PROPULSION ------- Improved Aluminum Leg Improved Aluminum Leg > --- UTILITY ---------- Small Storage Unit Field Recycling Unit > --- WEAPON ----------- EM Pulse Gun Medium Laser > --- INVENTORY -------- Ion Engine Light Treads Light Treads Aluminum Leg Aluminum Leg Light Assault Rifle [Rating: 10] Favorites ----------- Power Light Ion Engine Engine Light Ion Engine Propulsion Aluminum Leg Leg Aluminum Leg Utility Small Storage Unit Device Field Recycling Unit Storage Small Storage Unit Weapon Hammer Energy Gun EM Pulse Gun Ballistic Gun Light Assault Rifle Impact Weapon Hammer Build | -11 -10 ------- Run | Scr Mat Slots Evolved . | . . Power . | . . Propulsion . | . . Utility . | . . Weapon . | . . Parts Attached 11 | . 11 Power 1 | . 1 Engine 1 | . 1 Core . | . . Reactor . | . . Propulsion 4 | . 4 Treads . | . . Leg 4 | . 4 Wheel . | . . Hover . | . . Flight . | . . Utility 1 | . 1 Device 1 | . 1 Storage . | . . Processor . | . . Hackware . | . . Protection . | . . Artifact . | . . Weapon 5 | . 5 Energy Gun 2 | . 2 Energy Cannon . | . . Ballistic Gun 1 | . 1 Ballistic Cannon . | . . Launcher . | . . Special Weapon . | . . Impact Weapon 2 | . 2 Slashing Weapon . | . . Piercing Weapon . | . . Special Melee Weapon . | . . Unidentified Prototypes . | . . Parts Lost 7 | . 7 Power 1 | . 1 Propulsion 2 | . 2 Utility . | . . Weapon 4 | . 4 Highest Loss Streak 5 | . 5 Average Slot Usage (%) 83 | . 83 Engine 9 | . 9 Leg 25 | . 25 Device 9 | . 9 Storage 14 | . 14 Energy Gun 14 | . 14 Impact Weapon 9 | . 9 Naked Turns . | . . Heaviest Build 21 | 11 21 Greatest Support 26 | 20 26 Greatest Overweight (x) 5 | . 5 Average Overweight (x) . | . . Largest Inventory Capacity 6 | 6 6 Average Capacity 6 | 6 6 Most Carried 6 | 6 6 Average Carried 5 | 5 5 Final Capacity 6 | 6 6 Final Carried 6 | 4 6 Class Distribution -------------------- 100% | Mutant Dominant Class ---------------- Mutant | -10/Materials Resources | -11 -10 ----------- Run | Scr Mat Matter Collected 216 | 200 16 Remotely . | . . Salvage Created 170 | . 170 Parts 13 | . 13 Haulers Intercepted . | . . Recyclers Shooed . | . . Parts Field Recycled 9 | . 9 Retrieved Matter 53 | . 53 Parts Self-Destructed . | . . Prevented . | . . Kills | -11 -10 ------- Run | Scr Mat Combat Hostiles Destroyed 4 | . 4 Guns 4 | . 4 Classes Destroyed 1 | . 1 Grunt 4 | . 4 Best Kill Streak 2 | . 2 Combat Bots Only 2 | . 2 Max Kills in Single Turn 1 | . 1 Gunslinging . | . . Exploded . | . . Melee . | . . Uniques/NPCs Destroyed . | . . Combat | -11 -10 -------- Run | Scr Mat Damage Taken 947 | . 947 Core 256 | . 256 Absorbed by Shields . | . . Core Remaining (%) 100 | 100 . Volleys Fired 19 | . 19 Largest 2 | . 2 Hottest 90 | . 90 Shots Fired 26 | . 26 Gun 26 | . 26 Cannon . | . . Launcher . | . . Special . | . . Kinetic 4 | . 4 Thermal 15 | . 15 Explosive . | . . Electromagnetic 7 | . 7 Robot Hit Streak 9 | . 9 Robot Miss Streak 7 | . 7 Penetration Max . | . . Secondary Targets 1 | . 1 Max Gunslinging Chain 1 | . 1 Shots Hit Robots 26 | . 26 Core Hits 11 | . 11 Critical Hits . | . . Critical Kills . | . . Critical Parts Destroyed . | . . Melee Attacks 18 | . 18 Impact 18 | . 18 Slashing . | . . Piercing . | . . Sneak Attacks . | . . Combat Hostiles . | . . Follow-up Attacks 3 | . 3 Damage Inflicted 410 | . 410 Guns 210 | . 210 Cannons . | . . Explosions . | . . Melee 193 | . 193 Ramming 7 | . 7 Kinetic 30 | . 30 Thermal 140 | . 140 Explosive . | . . Electromagnetic 40 | . 40 Impact 193 | . 193 Slashing . | . . Piercing . | . . Highest Corruption . | . . Average Corruption . | . . Corruption Purged . | . . Overload Shots . | . . Overflow Damage 1 | . 1 Projectiles . | . . Explosions . | . . Melee 1 | . 1 Knockbacks 1 | . 1 Impact 1 | . 1 Kinetic . | . . Secondary . | . . Self-Inflicted Damage . | . . Shots . | . . Rammed 1 | . 1 Targets Rammed 4 | . 4 Kicked 3 | . 3 Crushed . | . . Highest Temperature 347 | . 347 Average Temperature 222 | . 222 Received Heat Transfer 516 | . 516 Effects 5 | . 5 Shutdowns 1 | . 1 Energy Bleed 2 | . 2 Short Circuit 1 | . 1 Damage (minor) 1 | . 1 Siege Activations . | . . Robots Corrupted . | . . Combat Hostiles . | . . Parts Fried . | . . Impact Corruptions 1 | . 1 Robots Melted . | . . Combat Hostiles . | . . Parts Melted . | . . Heat Transferred 360 | . 360 Parts Sabotaged . | . . Parts Stolen . | . . Parts Stripped . | . . Power Chain Reactions . | . . Missiles Intercepted . | . . Alert | -11 -10 ------- Run | Scr Mat Peak Influence 65 | . 65 Initial . | . . Average 28 | . 29 Maximum Alert Level . | . . Low Security (%) 100 | 100 100 Level 1 . | . . Level 2 . | . . Level 3 . | . . Level 4 . | . . Level 5 . | . . High Security . | . . Max Security . | . . Squads Dispatched 2 | . 2 Investigation 2 | . 2 Extermination . | . . Reinforcement . | . . Assault . | . . Garrison . | . . Intercept . | . . Construction Impeded . | . . Haulers Reinforced . | . . Stealth | -11 -10 --------- Run | Scr Mat Distress Signals . | . . Communications Jammed . | . . Distress Signals . | . . Times Spotted 8 | . 8 Peak Tracking Total 4 | . 4 Tactical Retreats 1 | . 1 Traps | -11 -10 ------- Run | Scr Mat Traps Triggered . | . . Indirectly . | . . Trap Hack Attempts . | . . Triggered . | . . Disarmed . | . . Reprogrammed . | . . Reused . | . . Traps Extracted . | . . Installed . | . . Triggered . | . . Machines | -11 -10 ---------- Run | Scr Mat Machines Disabled 1 | . 1 Max in Single Turn 1 | . 1 Machines Sabotaged . | . . Garrisons Compromised . | . . Overloaded Fab Kills . | . . Fab Network Shutdowns . | . . Hacking | -11 -10 --------- Run | Scr Mat Machines Accessed 3 | . 3 Terminals 2 | . 2 Fabricators . | . . Repair Stations . | . . Recycling Units 1 | . 1 Scanalyzers . | . . Garrison Access . | . . Total Hacks 11 | . 11 Successful 6 | . 6 Failed 5 | . 5 Catastrophic 1 | . 1 Database Lockouts . | . . Manual 6 | . 6 Terminals 6 | . 6 Fabricators . | . . Repair Stations . | . . Recycling Units 5 | . 5 Scanalyzers . | . . Garrison Access . | . . Terminal Hacks . | . . Fabricator Hacks . | . . Repair Station Hacks . | . . Recycling Unit Hacks 3 | . 3 Process 1 | . 1 Report Inventory 1 | . 1 Retrieve Matter 1 | . 1 Scanalyzer . | . . Garrison Access Hacks . | . . Unauthorized Hacks 3 | . 3 Terminals 3 | . 3 Botnet 2 | . 2 Search 1 | . 1 Fabricators . | . . Repair Stations . | . . Recycling Units . | . . Scanalyzers . | . . Garrison Access . | . . Data Cores Recovered . | . . Used . | . . Hacking Detections 3 | . 3 Full Trace Events 2 | . 2 Feedback Events . | . . Feedback Blocked . | . . Robot Schematics Acquired . | . . Robots Built . | . . Matter . | . . Time . | . . Total Robot Build Rating . | . . Part Schematics Acquired . | . . Parts Built . | . . Matter . | . . Time . | . . Total Part Build Rating . | . . Parts Repaired . | . . Time . | . . Parts Recycled . | . . Recycled Matter . | . . Retrieved Matter . | . . Retrieved Components . | . . Parts Scanalyzed . | . . Part Schematics Acquired . | . . Parts Damaged . | . . Bothacking | -11 -10 ------------ Run | Scr Mat Used RIF Installer . | . . Robots Hacked . | . . Non-combat . | . . Combat . | . . Robot Hacks Applied . | . . Relay Couplers Released . | . . Robots Rewired . | . . Allies Hacked . | . . Hacks Repelled . | . . Allies | -11 -10 -------- Run | Scr Mat Total Allies . | . . Largest Group . | . . Highest-Rated Group . | . . Highest-Rated Ally . | . . Total Orders . | . . Ally Attacks . | . . Total Damage . | . . Kills . | . . Allies Corrupted . | . . Allies Melted . | . . Intel | -11 -10 ------- Run | Scr Mat Robot Analysis Total . | . . Derelict Logs Recovered . | . . Drone Launches . | . . Drone Recoveries . | . . Exploration | -11 -10 ------------- Run | Scr Mat Turns Passed 402 | 7 395 Spaces Moved 230 | 6 224 Core 3 | . 3 Treads . | . . Legs 227 | 6 221 Wheels . | . . Hover . | . . Flight . | . . Fastest Speed 120 | 120 120 Average Speed 123 | 120 123 Slowest Speed 300 | 120 300 Overloaded Moves . | . . Propulsion Burnouts . | . . Robots Hopped . | . . Cave-ins Triggered . | . . Exploration Rate (%) 16 | 2 30 Regions Visited 1 Branch Regions . Pre-discovered Areas . | . . Known Exits Taken . | . . Unknown Exits Taken 1 | 1 . Scrap Searched . | . . Spaces Dug . | . . Terrain Destroyed . | . . Melee . | . . Projectile . | . . AOE . | . . Terrain Rammed . | . . Walls Destroyed . | . . Machines Disabled . | . . Actions | -11 -10 --------- Run | Scr Mat Total 297 | 7 290 Wait 14 | . 14 Move 229 | 5 224 Hop . | . . Pick Up 1 | . 1 Fast Attach 7 | . 7 Attach 1 | . 1 Detach 1 | . 1 Swap 3 | . 3 Drop 3 | 2 1 Fire 19 | . 19 Melee 15 | . 15 Ram . | . . Kick 4 | . 4 Crush . | . . Escape Stasis . | . . Rewire . | . . Trap . | . . Miscellaneous . | . . Route ------- -11/Scrapyard -10/Materials History --------- Turn | Location | Event 1 | -11/Scrapyard | Discovered new exit (range 3) 8 | -11/Scrapyard | Entered Materials 223 | -10/Materials | Core integrity fell below 50% 245 | -10/Materials | Lost 5 parts (2n3w) 274 | -10/Materials | Core integrity fell below 20% 308 | -10/Materials | Build established: Mutant 403 | -10/Materials | Destroyed by G-34 Mercenary with Small Laser Last Messages --------------- 00230_ Acquired Sml. Laser. 00231_ R-06 Scavenger collects Aluminum Leg. 00232_ G-34 Mercenary destroyed. 00233_ Acquired 16 matter. 00234_ R-06 Scavenger collects Heat Sink. 00235_ R-06 Scavenger collects Lgt. Ion Engine. 00237_ R-06 Scavenger collects Ion Engine. 00238_ R-06 Scavenger collects Aluminum Leg. 00241_ Acquired Aluminum Leg. 00246_ R-06 Scavenger collects Sml. Laser. 00248_ U-05 Engineer lays Concrete. 00248_ Sml. Laser destroyed. 00260_ Acquired Hammer. 00277_ Ion Engine destroyed. 00278_ Hammer follow-up attack on G-34 Mercenary. 00284_ Destroyed Sml. Laser. 00284_ G-34 Mercenary system corrupted by crushing effect. 00386_ Hammer follow-up attack on G-34 Mercenary. 00386_ G-34 Mercenary knocked back. 00399_ Hammer follow-up attack on G-34 Mercenary. Map ----- +----------------------------------------------------+ | %%## # #?????????????????????????????????????? | | # # #?????????????????????????????????????? | | # # #?????????????????????????????????????? | | T # # #?????????????????????????????????????? | | ###### #??#######????????????????????????????? | | ####### #### #????????????????????????????? | | #?# #????????????????????????????? | | #?# #????????????????????????????? | | #?# #???##########???????????????? | | #?# ####### #???# ! #???????????????? | | # #?# #?????## ##???#/ """#???????????????? | | # #?# #??????# #????# """#???????????????? | | #?# #??????# #????# """#???????????????? | | ###?# #??????# ###### #???????????????? | | #???# ######## # """#???????????????? | | #???# # # + """#???????????????? | | #???# # """ # # """#???????????????? | | #???# # """ # # #???????????????? | | #???# # """ # ###########??????????????? | | ##### # # a # ! #??????????????? | | # # """ # # / #??????????????? | | # + """ # # #??????????????? | | # # """ # # #??????????????? | | ##### ## # # #??????????????? | | ????# ## "" # g #??????????????? | | ????# ## "Y # #@ #??????????????? | | ????# ## "" #^ ^ # ! #??????????????? | | ????# ## # ###########??????????????? | | ????# ######### #????????????????????????? | | ????# #???????# #????????????????????????? | | ????# #???????# #????????????????????????? | | ????# #???????# +????????????????????????? | | ????# #???????# #????????????????????????? | | ????# #???????# #????????????????????????? | | ????# ????????# #????????????????????????? | | ????? ????????# ?????????????????????????? | | ????? ????????# ?????????????????????????? | | ????????????????? ? ?????????????????????????? | | ????????????????????? ##?????????????????????????? | | ?????????????????????????????????????????????????? | | ?????????????????????????????????????????????????? | | ?????????????????????????????????????????????????? | | ?????????????????????????????????????????????????? | | ?????????????????????????????????????????????????? | | ?????????????????????????????????????????????????? | | ?????????????????????????????????????????????????? | | ?????????????????????????????????????????????????? | | ?????????????????????????????????????????????????? | | ?????????????????????????????????????????????????? | | ?????????????????????????????????????????????????? | +----------------------------------------------------+ Best States ------------- Heat Dissipation 25 Energy Generation 10 Energy Capacity 250 Matter Stores 300 Matter Capacity 300 Sight Range 16 Terrain Scan Density 10 Evasion (%) 40 Item Schematics ----------------- None Robot Schematics ------------------ None Fabricated ------------ Nothing Alien Tech Used ----------------- None Achievements -------------- None Challenges ------------ None Game ------ Seed RegenerativePhaseFrame Manual? 0 Play Time 00:03:41 Cumulative 340.2 hours Start 2021.10.03 @ 11:11:37 End 2021.10.03 @ 11:15:32 Sessions 1 Manual Loads 0 Difficulty Rogue Special Mode None Game No. 229 Rogue 58 Adventurer 61 Explorer 110 Win Type - Total 19 Types 17/0/1/0/0/0/0/1/0 Lore% 63 Gallery% 86 Achievement% 65 Wizard Run 0 Options --------- ASCII 0 Keyboard 1 Movement Numpad Keybinds 0 Fullscreen 2 Font 18/X11 Map View 76x50 Tactical HUD 1 Map Filters NONE Filters NONE Steam 1 RUN: d3753b23-cd3f-4221-9441-d4ef67a47031